Workbook

Sheet 27.01
A2: МБОУ "СОШ №33" НМР РТ | D2: Отд./корп | E2: 1 неделя | H2: День | I2: 2025-01-27
A4: Раздел | B4: № рец. | C4: Блюдо | D4: Выход, г | E4: Цена | F4: Ккал | G4: Белки | H4: Жиры | I4: Угл-ды
A5: Завтрак
B6: 1 | C6: Бутерброд с маслом сливочным | D6: 40 | F6: 136.00 | G6: 2.36 | H6: 7.49 | I6: 14.89
A7: 2 блюдо | B7: 175 | C7: Каша "Дружба" молочная | D7: 200 | F7: 258.12 | G7: 11.44 | H7: 10.16 | I7: 27.23
A8: гор.напиток | B8: 378 | C8: Чай с сахаром | D8: 200 | F8: 32.00 | G8: 0.07 | H8: 0.02 | I8: 8.00
A9: хлеб | C9: Батон нарезной | D9: 60 | F9: 157.20 | G9: 4.50 | H9: 1.74 | I9: 30.84
D10: 500 | F10: =SUM(F6:F9) -> 583.32 | G10: =SUM(G6:G9) -> 18.37 | H10: 19.41 | I10: 80.96
A11: Обед
A12: 1 блюдо | B12: 88 | C12: Щи из свежей капусты с картофелем, со сметаной | D12: 200/5 | F12: 153.90 | G12: 7.54 | H12: 11.91 | I12: 6.50
A13: 2 блюдо | B13: 757 | C13: Котлеты Домашние с гречкой | D13: 90 | F13: 248.00 | G13: 8.01 | H13: 11.14 | I13: 35.71
A14: гарнир | B14: 303 | C14: Макаронные отварные с маслом сливочным | D14: 150/3 | F14: 176.10 | G14: 5.68 | H14: 2.88 | I14: 31.96
A15: напиток | B15: 349 | C15: Напиток из сухофруктов | D15: 200 | F15: 92.90 | G15: 0.70 | H15: 0.10 | I15: 22.03
A16: хлеб | C16: Хлеб пшеничный/ ржаной | D16: 25/30 | F16: 118.15 | G16: 3.88 | H16: 0.56 | I16: 24.18
D17: 703 | F17: =SUM(F12:F16) -> 789.05 | G17: =SUM(G12:G16) -> 25.81 | H17: 26.59 | I17: 120.38
C18: бесп питание младшие + допол. питание | D18: =SUM(D10+D17) -> 1203 | E18: 126.99 | F18: 1372.37 | G18: =SUM(G10+G17) -> 44.18 | H18: 46.00 | I18: 201.34
A20: Горячий завтрак (младшие)
B21: 17 | C21: Сыр порционно | D21: 10 | F21: 34.33 | G21: 2.63 | H21: 2.66 | I21: 0.00
A22: 2 блюдо | B22: 757 | C22: Котлеты Домашние с гречкой | D22: 90 | F22: 248.00 | G22: 8.01 | H22: 11.14 | I22: 35.71
A23: гарнир | B23: 303 | C23: Макаронные отварные с маслом сливочным | D23: 150/3 | F23: 191.20 | G23: 5.90 | H23: 4.58 | I23: 31.96
A24: гор.напиток | B24: 378 | C24: Чай без сахара | D24: 200 | F24: 2.80 | G24: 0.40 | H24: 0.10 | I24: 0.01
A25: хлеб | C25: Хлеб пшеничный/ ржаной | D25: 20/25 | F25: 96.50 | G25: 3.17 | H25: 0.46 | I25: 19.74
C27: бесплатное питание младшие | D27: 500 | E27: 83.89 | F27: =F21+F22+F23+F24+F25+F26 -> 572.83 | G27: =G21+G22+G23+G24+G25+G26 -> 20.11 | H27: =H21+H22+H23+H24+H25+H26 -> 18.94 | I27: =I21+I22+I23+I24+I25+I26 -> 87.42
A29: Раздел | B29: № рец. | C29: Блюдо | D29: Выход, г | E29: Цена | F29: Ккал | G29: Белки | H29: Жиры | I29: Угл-ды
A30: Старшие
B31: 757 | C31: Котлеты Домашние с гречкой | D31: 100 | F31: 275.55 | G31: 8.90 | H31: 12.37 | I31: 37.67
A32: 2 блюдо | B32: 303 | C32: Макаронные отварные с маслом сливочным | D32: 180/3 | F32: 241.94 | G32: 9.64 | H32: 7.60 | I32: 33.35
A33: гарнир | B33: 523 | C33: Свекла отварная доп.гарнир | D33: 30 | F33: 27.84 | G33: 0.42 | H33: 1.80 | I33: 2.48
A34: гор.напиток | B34: 378 | C34: Чай с сахаром | D34: 200 | F34: 32.00 | G34: 0.07 | H34: 0.02 | I34: 8.00
A35: хлеб | C35: Хлеб пшеничный/ ржаной | D35: 20/20 | F35: 86.60 | G35: 2.84 | H35: 0.40 | I35: 17.76
C37: питание старшие | D37: 553 | E37: 87.18 | F37: =SUM(F31:F35) -> 663.93 | G37: =SUM(G31:G35) -> 21.87 | H37: 22.19 | I37: 99.26

Sheet 28.01
A2: МБОУ "СОШ №33" НМР РТ | D2: Отд./корп | E2: 1 неделя | H2: День | I2: 2025-01-28
A4: Раздел | B4: № рец. | C4: Блюдо | D4: Выход, г | E4: Цена | F4: Ккал | G4: Белки | H4: Жиры | I4: Угл-ды
A5: Завтрак
A6: хлеб | B6: 965 | C6: Бутерброд с повидлом | D6: 50 | F6: 209.00 | G6: 7.05 | H6: 2.30 | I6: 16.80
A7: 2 блюдо | B7: 173 | C7: Каша гречневая молочная вязкая | D7: 200 | F7: 206.46 | G7: 5.92 | H7: 12.59 | I7: 35.42
A8: гор.напиток | B8: 379 | C8: Кофейный напиток с молоком | D8: 200 | F8: 60.10 | G8: 3.17 | H8: 2.68 | I8: 9.98
A9: хлеб | C9: Батон нарезной | D9: 50 | F9: 131.00 | G9: 3.75 | H9: 1.45 | I9: 25.70
D10: 500 | F10: =SUM(F6:F9) -> 606.56 | G10: =SUM(G6:G9) -> 19.89 | H10: 19.02 | I10: 87.90
A11: Обед
A13: 1 блюдо | B13: 96 | C13: Рассольник Ленинградский со сметаной | D13: 200/5 | F13: 93.90 | G13: 5.94 | H13: 6.82 | I13: 12.56
A14: 2 блюдо | B14: 130 | C14: Биточки куриные Солнышко | D14: 90 | F14: 183.45 | G14: 6.01 | H14: 11.53 | I14: 12.88
A15: гарнир | B15: 303 | C15: Каша пшеничная вязкая с маслом сливочным | D15: 150/3 | F15: 227.00 | G15: 6.70 | H15: 4.38 | I15: 35.99
A16: напиток | B16: 555 | C16: Напиток из изюма и яблок | D16: 200 | F16: 68.12 | G16: 0.20 | H16: 0.10 | I16: 19.82
A17: хлеб | C17: Хлеб ржаной/пшеничный | D17: 30/25 | F17: 118.15 | G17: 3.88 | H17: 0.56 | I17: 24.18
D18: 703 | F18: =SUM(F12:F17) -> 690.62 | G18: =SUM(G12:G17) -> 22.73 | H18: =SUM(H12:H17) -> 23.39 | I18: =SUM(I12:I17) -> 105.43
C19: бесп питание младшие + допол. питание | D19: =D10+D18 -> 1203 | E19: ='27.01'!E18 -> 126.99 | F19: =SUM(F10+F18) -> 1297.18 | G19: =SUM(G10+G18) -> 42.62 | H19: =SUM(H10+H18) -> 42.41 | I19: =SUM(I10+I18) -> 193.33
A21: Горячий завтрак (младшие)
A23: 2 блюдо | B23: 130 | C23: Биточки куриные Солнышко | D23: 90 | F23: 183.45 | G23: 6.01 | H23: 11.53 | I23: 12.88
A24: гарнир | B24: 303 | C24: Каша пшеничная вязкая с маслом сливочным | D24: 150/3 | F24: 227.00 | G24: 6.70 | H24: 4.38 | I24: 35.99
A25: гор.напиток | B25: 379 | C25: Кофейный напиток с молоком | D25: 200 | F25: 60.10 | G25: 3.17 | H25: 2.68 | I25: 9.98
A26: хлеб | C26: Хлеб ржаной/пшеничный | D26: 30/30 | F26: 129.90 | G26: 4.26 | H26: 0.60 | I26: 26.64
C28: бесплатное питание младшие | D28: 503 | E28: ='27.01'!E27 -> 83.89 | F28: =SUM(F22:F27) -> 600.45 | G28: =SUM(G22:G27) -> 20.14 | H28: 19.19 | I28: 85.49
A30: Раздел | B30: № рец. | C30: Блюдо | D30: Выход, г | E30: Цена | F30: Ккал | G30: Белки | H30: Жиры | I30: Угл-ды
A31: Старшие
A32: 2 блюдо | B32: 130 | C32: Биточки куриные Солнышко | D32: 100 | F32: 203.80 | G32: 6.67 | H32: 12.81 | I32: 14.30
A33: гарнир | B33: 303 | C33: Каша пшеничная вязкая с маслом сливочным | D33: 180/3 | F33: 247.00 | G33: 7.70 | H33: 7.27 | I33: 36.59
A34: гор.напиток | B34: 379 | C34: Кофейный напиток с молоком | D34: 200 | F34: 60.10 | G34: 3.17 | H34: 2.68 | I34: 9.98
A35: хлеб | C35: Хлеб ржаной/пшеничный | D35: 40/30 | F35: 147.70 | G35: 4.92 | H35: 0.72 | I35: 30.60
C38: питание старшие | D38: 553 | E38: ='27.01'!E37 -> 87.18 | F38: =SUM(F32:F36) -> 658.60 | G38: =SUM(G32:G36) -> 22.46 | H38: 23.48 | I38: 91.47

Sheet 29.01
A2: МБОУ "СОШ №33" НМР РТ | D2: Отд./корп | E2: 1 неделя | H2: День | I2: 2025-01-29
A4: Раздел | B4: № рец. | C4: Блюдо | D4: Выход, г | E4: Цена | F4: Ккал | G4: Белки | H4: Жиры | I4: Угл-ды
A5: Завтрак
A6: Фрукты | C6: Фрукты (яблоки) | D6: 100 | F6: 47.00 | G6: 0.40 | H6: 0.40 | I6: 9.80
A7: 2 блюдо | B7: 173 | C7: Каша молочная пшенная | D7: 150 | F7: 236.00 | G7: 10.60 | H7: 13.52 | I7: 23.68
A8: гор.напиток | B8: 377 | C8: Чай с сахаром и лимоном | D8: 200 | F8: 34.02 | G8: 0.13 | H8: 0.02 | I8: 8.20
A9: хлеб | C9: Батон нарезной | D9: 50 | F9: 131.00 | G9: 3.75 | H9: 1.45 | I9: 25.70
D10: 500 | F10: =SUM(F6:F9) -> 448.02 | G10: =SUM(G6:G9) -> 14.88 | H10: =SUM(H6:H9) -> 15.39 | I10: =SUM(I6:I9) -> 67.38
A11: Обед
A12: 1 блюдо | B12: 113 | C12: Суп лапша домашняя с картофелем | D12: 200 | F12: 92.40 | G12: 4.35 | H12: 4.83 | I12: 29.30
A13: 2 блюдо | B13: 291 | C13: Плов из куриной грудки | D13: 200 | F13: 390.50 | G13: 15.42 | H13: 17.96 | I13: 38.93
A14: холод.закуска | B14: 10 | C14: Горошек консервированный (доп.гарнир) | D14: 40 | F14: 53.52 | G14: 1.09 | H14: 2.87 | I14: 5.82
A15: напиток | B15: 388 | C15: Напиток из плодов шиповника | D15: 200 | F15: 123.60 | G15: 0.60 | H15: 0.10 | I15: 20.20
A16: хлеб | C16: Хлеб ржаной/пшеничный | D16: 30/30 | F16: 129.90 | G16: 4.26 | H16: 0.60 | I16: 26.64
D17: 700 | F17: =SUM(F12:F16) -> 789.92 | G17: =SUM(G12:G16) -> 25.72 | H17: =SUM(H12:H16) -> 26.36 | I17: =SUM(I12:I16) -> 120.89
C18: бесп питание младшие + допол. питание | D18: =SUM(D10+D17) -> 1200 | E18: ='28.01'!E19 -> 126.99 | F18: 1237.94 | G18: 40.60 | H18: 41.75 | I18: 188.27
A20: Горячий завтрак (младшие)
A21: Фрукты | C21: Фрукты (яблоки) | D21: 100 | F21: 47.00 | G21: 0.40 | H21: 0.40 | I21: 9.80
A22: 2 блюдо | B22: 291 | C22: Плов из куриной грудки | D22: 200 | F22: 390.50 | G22: 15.42 | H22: 17.96 | I22: 38.93
A23: гор.напиток | B23: 377 | C23: Чай с сахаром и лимоном | D23: 200 | F23: 34.02 | G23: 0.13 | H23: 0.02 | I23: 8.20
A24: хлеб | C24: Хлеб ржаной/пшеничный | D24: 20/30 | F24: 110.10 | G24: 3.60 | H24: 0.48 | I24: 22.68
C26: бесплатное питание младшие | D26: 550 | E26: ='28.01'!E28 -> 83.89 | F26: =SUM(F21:F25) -> 581.62 | G26: =SUM(G21:G25) -> 19.55 | H26: 18.86 | I26: 79.61
A28: Раздел | B28: № рец. | C28: Блюдо | D28: Выход, г | E28: Цена | F28: Ккал | G28: Белки | H28: Жиры | I28: Угл-ды
A29: Старшие
A30: Фрукты | C30: Фрукты (яблоки) | D30: 100 | F30: 47.00 | G30: 0.40 | H30: 0.40 | I30: 9.80
A31: 2 блюдо | B31: 291 | C31: Плов из куриной грудки | D31: 250 | F31: 521.12 | G31: 19.57 | H31: 22.45 | I31: 60.06
A32: гор.напиток | B32: 377 | C32: Чай с сахаром и лимоном | D32: 200 | F32: 34.02 | G32: 0.13 | H32: 0.02 | I32: 8.20
A33: хлеб | C33: Хлеб пшеничный | D33: 30 | F33: 70.50 | G33: 2.28 | H33: 0.24 | I33: 14.76
C35: питание старшие | D35: 580 | E35: ='28.01'!E38 -> 87.18 | F35: =SUM(F30:F33) -> 672.64 | G35: =SUM(G30:G33) -> 22.38 | H35: =SUM(H30:H33) -> 23.11 | I35: =SUM(I30:I33) -> 92.82

Sheet 30.01
A2: МБОУ "СОШ №33" НМР РТ | D2: Отд./корп | E2: 1 неделя | H2: День | I2: 2025-01-30
A4: Раздел | B4: № рец. | C4: Блюдо | D4: Выход, г | E4: Цена | F4: Ккал | G4: Белки | H4: Жиры | I4: Угл-ды
A5: Завтрак
A6: хлеб | B6: 3 | C6: Бутерброд с сыром и маслом сливочным | D6: 50 | F6: 155.00 | G6: 6.27 | H6: 7.86 | I6: 14.83
A7: 2 блюдо | B7: 173 | C7: Каша геркулесовая молочная вязкая с маслом сливочным | D7: 180/5 | F7: 206.30 | G7: 4.99 | H7: 7.40 | I7: 28.81
A8: гор.напиток | B8: 382 | C8: Какао с молоком | D8: 200 | F8: 58.60 | G8: 4.08 | H8: 3.54 | I8: 2.61
A9: хлеб | C9: Батон нарезной | D9: 65 | F9: 170.30 | G9: 4.87 | H9: 1.88 | I9: 33.41
D10: 500 | F10: =SUM(F6:F9) -> 590.20 | G10: =SUM(G6:G9) -> 20.21 | H10: =SUM(H6:H9) -> 20.68 | I10: =SUM(I6:I9) -> 79.66
A11: Обед
A12: 1 блюдо | B12: 82 | C12: Борщ из свежей капусты с картофелем | D12: 250 | F12: 133.75 | G12: 2.80 | H12: 6.92 | I12: 16.93
A13: 2 блюдо | B13: 294 | C13: Овощи тушеные с мясом | D13: 200 | F13: 374.45 | G13: 14.05 | H13: 15.97 | I13: 32.80
A14: напиток | B14: 388 | C14: Напиток из урюка | D14: 200 | F14: 68.52 | G14: 0.75 | H14: 0.06 | I14: 15.95
A15: хлеб | C15: Хлеб ржаной/пшеничный | D15: 40/30 | F15: 149.70 | G15: 4.92 | H15: 0.72 | I15: 30.60
D17: 720 | F17: =SUM(F12:F16) -> 726.42 | G17: =SUM(G12:G16) -> 22.52 | H17: =SUM(H12:H16) -> 23.67 | I17: =SUM(I12:I16) -> 96.28
C18: бесп питание младшие + допол. питание | D18: =D10+D17 -> 1220 | E18: ='29.01'!E18 -> 126.99 | F18: =SUM(F10+F17) -> 1316.62 | G18: =SUM(G10+G17) -> 42.73 | H18: =SUM(H10+H17) -> 44.35 | I18: =SUM(I10+I17) -> 175.94
A20: Горячий завтрак (младшие)
A21: холод.закуска | B21: 15 | C21: Капуста квашеная доп.гарнир | D21: 50 | F21: 42.85 | G21: 0.85 | H21: 2.50 | I21: 4.22
A22: 2 блюдо | B22: 294 | C22: Овощи тушеные с мясом | D22: 200 | F22: 374.45 | G22: 14.05 | H22: 15.97 | I22: 32.80
A23: напиток | B23: 388 | C23: Напиток из урюка | D23: 200 | F23: 68.52 | G23: 0.75 | H23: 0.06 | I23: 15.95
A24: хлеб | C24: Хлеб ржаной/пшеничный | D24: 30/30 | F24: 129.90 | G24: 4.26 | H24: 0.60 | I24: 26.64
C26: бесплатное питание младшие | D26: 510 | E26: ='29.01'!E26 -> 83.89 | F26: =SUM(F21:F24) -> 615.72 | G26: =SUM(G21:G24) -> 19.91 | H26: =SUM(H21:H24) -> 19.13 | I26: =SUM(I21:I24) -> 79.61
A28: Раздел | B28: № рец. | C28: Блюдо | D28: Выход, г | E28: Цена | F28: Ккал | G28: Белки | H28: Жиры | I28: Угл-ды
A29: Старшие
A30: холод.закуска | B30: 15 | C30: Салат из квашеной капусты | D30: 100 | F30: 85.70 | G30: 1.70 | H30: 4.80 | I30: 8.46
A31: 2 блюдо | B31: 294 | C31: Овощи тушеные с мясом | D31: 250 | F31: 507.50 | G31: 18.80 | H31: 19.96 | I31: 56.00
A32: напиток | B32: 388 | C32: Напиток из урюка | D32: 200 | F32: 68.52 | G32: 0.75 | H32: 0.06 | I32: 15.95
A33: хлеб | C33: Хлеб пшеничный/ ржаной | D33: 20/20 | F33: 86.60 | G33: 2.84 | H33: 0.40 | I33: 17.76
C34: питание старшие | D34: 590 | E34: ='29.01'!E35 -> 87.18 | F34: =SUM(F30:F33) -> 748.32 | G34: =SUM(G30:G33) -> 24.09 | H34: =SUM(H30:H33) -> 25.22 | I34: =SUM(I30:I33) -> 98.17

Sheet 31.01
A2: МБОУ "СОШ №33" НМР РТ | D2: Отд./корп | E2: 1 неделя | H2: День | I2: 2025-01-31
A4: Раздел | B4: № рец. | C4: Блюдо | D4: Выход, г | E4: Цена | F4: Ккал | G4: Белки | H4: Жиры | I4: Угл-ды
A5: Завтрак
A6: Фрукты | C6: Фрукты (яблоки) | D6: 100 | F6: 47.00 | G6: 0.40 | H6: 0.40 | I6: 9.80
A7: 2 блюдо | B7: 761 | C7: Сырники из творога со сгущенкой | D7: 120/30 | F7: 398.93 | G7: 15.55 | H7: 18.35 | I7: 36.06
A8: гор.напиток | B8: 376 | C8: Чай с сахаром | D8: 200 | F8: 32.00 | G8: 0.07 | H8: 0.02 | I8: 8.00
A9: хлеб | C9: Батон нарезной | D9: 50 | F9: 131.00 | G9: 3.75 | H9: 1.45 | I9: 25.70
D10: 500 | F10: =SUM(F6:F9) -> 608.93 | G10: =SUM(G6:G9) -> 19.77 | H10: =SUM(H6:H9) -> 20.22 | I10: =SUM(I6:I9) -> 79.56
A11: Обед
A12: 1 блюдо | B12: 102 | C12: Суп картофельный с горохом | D12: 200 | F12: 218.60 | G12: 4.35 | H12: 5.22 | I12: 26.53
A13: 2 блюдо | B13: 966 | C13: Сосиска с томатным соусом, с кашей гречневой | D13: 250 | F13: 326.70 | G13: 13.62 | H13: 17.31 | I13: 39.57
A14: напиток | B14: 342 | C14: Компот из свежих яблок | D14: 200 | F14: 46.60 | G14: 0.16 | H14: 0.16 | I14: 10.91
A15: хлеб | C15: Хлеб ржаной/пшеничный | D15: 30/30 | F15: 129.90 | G15: 4.26 | H15: 0.60 | I15: 26.64
D17: 703 | F17: =SUM(F12:F16) -> 721.80 | G17: =SUM(G12:G16) -> 22.39 | H17: =SUM(H12:H16) -> 23.29 | I17: =SUM(I12:I16) -> 103.65
C18: бесп питание младшие + допол. питание | D18: =D10+D17 -> 1203 | E18: ='30.01'!E18 -> 126.99 | F18: =SUM(F10+F17) -> 1330.73 | G18: =SUM(G10+G17) -> 42.16 | H18: =SUM(H10+H17) -> 43.51 | I18: =SUM(I10+I17) -> 183.21
A20: Горячий завтрак (младшие)
A21: Фрукты | C21: Фрукты (яблоки) | D21: 100 | F21: 47.00 | G21: 0.40 | H21: 0.40 | I21: 9.80
A22: 2 блюдо | B22: 761 | C22: Сырники из творога со сгущенкой | D22: 120/30 | F22: 398.93 | G22: 15.55 | H22: 18.35 | I22: 36.03
A23: гор.напиток | B23: 376 | C23: Чай с сахаром | D23: 200 | F23: 32.00 | G23: 0.07 | H23: 0.02 | I23: 8.00
A24: хлеб | C24: Хлеб ржаной/пшеничный | D24: 30/30 | F24: 129.90 | G24: 4.18 | H24: 0.60 | I24: 26.64
C25: бесплатное питание младшие | D25: 510 | E25: ='30.01'!E26 -> 83.89 | F25: =SUM(F21:F24) -> 607.83 | G25: =SUM(G21:G24) -> 20.20 | H25: 19.37 | I25: 80.47
A27: Раздел | B27: № рец. | C27: Блюдо | D27: Выход, г | E27: Цена | F27: Ккал | G27: Белки | H27: Жиры | I27: Угл-ды
A28: Старшие
A29: Фрукты | C29: Фрукты (яблоки) | D29: 100 | F29: 47.00 | G29: 0.40 | H29: 0.40 | I29: 9.80
A30: 2 блюдо | B30: 290 | C30: Запеканка из творога с повидлом | D30: 200 | F30: 502.80 | G30: 19.63 | H30: 22.18 | I30: 51.50
A31: гор.напиток | B31: 376 | C31: Чай с сахаром | D31: 200 | F31: 32.00 | G31: 0.07 | H31: 0.02 | I31: 8.00
A32: хлеб | C32: Хлеб пшеничный/ржаной | D32: 20/30 | F32: 106.40 | G32: 3.50 | H32: 0.52 | I32: 21.72
C33: питание старшие | D33: 550 | E33: ='30.01'!E34 -> 87.18 | F33: =SUM(F29:F32) -> 688.20 | G33: =SUM(G29:G32) -> 23.60 | H33: 23.12 | I33: 91.02
